bitfinex/quotes_ETHUSD_20241116
["timestamp","ask_amount","ask_price","bid_price","bid_amount"]
[1731747218344,3.27272778,3115.8,3115.4,0.16040509]
[1731747218562,0.06326778,3115.8,3115.5,0.16040509]
[1731747218766,0.06326778,3115.8,3115.3,35.0]
[1731747218903,3.27272778,3115.8,3115.4,0.16040484]
[1731747219107,3.27272778,3115.8,3115.3,35.0]
[1731747219407,3.27272778,3115.8,3115.4,0.16040781]
[1731747219617,3.27272778,3115.8,3115.3,35.0]
[1731747220013,3.27272778,3115.8,3115.4,0.16040797]
[1731747220213,3.27272778,3115.8,3115.3,35.0]
[1731747220445,3.27272778,3115.8,3115.4,0.16040702]
[1731747220652,3.27272778,3115.8,3115.3,35.0]
[1731747220854,3.27272778,3115.8,3115.4,0.16040713]
[1731747221163,0.06326778,3115.8,3115.3,35.0]
[1731747221305,3.27270778,3115.8,3115.4,0.16040572]
[1731747221504,3.27272778,3115.8,3115.5,0.16040572]
[1731747221703,3.27272778,3115.8,3115.3,35.0]
[1731747221945,3.27272778,3115.8,3115.4,0.1604063]
[1731747222143,3.27272778,3115.8,3115.5,0.1604063]
[1731747222349,3.27272778,3115.8,3115.3,35.0]
[1731747222505,3.27272778,3115.8,3115.4,0.16040698]
[1731747222704,3.27272778,3115.8,3115.5,0.16040698]
[1731747223061,3.20957,3115.7,3115.3,35.0]
[1731747223349,0.06326778,3115.6,3115.4,0.16041033]
[1731747223557,0.06326778,3115.6,3115.3,35.0]
[1731747223847,0.06326778,3115.6,3115.4,0.16040921]
[1731747224015,0.06326778,3115.6,3115.3,35.0]
[1731747224344,0.06326778,3115.6,3115.4,0.39985391]
[1731747224640,0.06326778,3115.6,3115.5,0.23944577]
[1731747225051,0.06326778,3115.6,3115.5,0.39985167]
[1731747225215,0.06326778,3115.6,3115.5,0.39985164]
[1731747225408,0.06326778,3115.6,3115.5,0.23944577]
[1731747227006,0.06326778,3115.6,3115.3,35.0]
[1731747227347,0.06326778,3115.6,3115.4,0.39984992]
[1731747227550,0.06326778,3115.6,3115.5,0.23943836]
[1731747229524,0.06326778,3115.8,3115.5,0.23943836]
[1731747229723,0.06326778,3115.8,3115.6,0.23943836]
[1731747230063,0.06326778,3115.8,3115.3,38.20995]
[1731747230064,0.06326778,3115.8,3115.7,0.23943836]
[1731747230635,0.06326778,3116.0,3115.7,0.23943836]
[1731747230966,0.06326778,3116.0,3115.6,0.8115]
[1731747238189,5.3548356,3115.7,3115.3,35.0]
[1731747238478,3.27298778,3115.6,3115.4,0.16041037]
[1731747238642,3.27298778,3115.6,3115.3,35.0]
[1731747238844,0.06326778,3115.6,3115.3,35.0]
[1731747239043,3.2098,3115.5,3115.3,35.0]
[1731747239283,0.06326778,3115.4,3115.3,35.0]
[1731747239484,0.06326778,3115.6,3115.3,35.16041874]
[1731747239780,0.06326778,3115.6,3115.3,35.0]
[1731747239781,3.27299778,3115.6,3115.3,35.0]
[1731747240116,3.20977,3115.5,3115.3,35.0]
[1731747240393,0.87476778,3115.4,3115.3,35.0]
[1731747240752,0.87476778,3115.4,3115.3,35.16041888]
[1731747241148,0.87476778,3115.4,3115.3,35.16041892]
[1731747241591,4.08462778,3115.4,3114.8,3.53113]
[1731747241788,4.08462778,3115.4,3115.3,0.16041913]
[1731747241948,4.86038392,3115.4,3115.0,0.20052476]
[1731747242295,4.08462778,3115.4,3115.1,35.16041984]
[1731747242447,4.08462778,3115.4,3115.1,35.0]
[1731747242448,3.21006,3115.2,3115.1,35.0]
[1731747243691,3.11006,3115.2,3115.1,35.0]
[1731747244604,4.08462778,3115.4,3115.1,35.0]
[1731747244605,3.20996,3115.3,3115.1,35.0]
[1731747244766,0.06326778,3115.2,3115.1,35.0]
[1731747247387,3.27322778,3115.3,3115.1,35.0]
[1731747248397,3.20996,3115.3,3115.1,35.0]
[1731747253674,3.21006,3115.2,3115.1,35.0]
[1731747255925,3.21006,3115.2,3114.8,0.819]
[1731747256218,3.27332778,3115.2,3114.8,0.819]
[1731747256416,0.06326778,3115.2,3114.9,35.0]
[1731747256585,0.06326778,3115.2,3115.1,3.21016]
[1731747256933,3.20956,3115.7,3115.3,0.55]
[1731747257091,0.06326778,3115.6,3115.3,0.55]
[1731747258887,3.27293778,3115.6,3115.3,0.55]
[1731747259613,0.06326778,3115.6,3115.3,0.55]
[1731747260323,0.06326778,3115.6,3115.2,0.7753]
[1731747261620,0.06326778,3115.6,3115.3,0.16040898]
[1731747261925,0.06326778,3115.6,3115.2,0.7753]
[1731747262126,0.06326778,3115.6,3115.4,0.3207]
[1731747262288,0.06326778,3115.6,3115.2,0.7753]
[1731747263214,3.20956,3115.7,3115.2,0.7753]
[1731747263543,3.27282778,3115.7,3115.2,0.7753]
[1731747264032,3.27282778,3115.7,3115.3,0.160412]
[1731747264033,0.06326778,3115.7,3115.3,0.160412]
[1731747264325,0.06326778,3115.7,3115.2,0.7753]
[1731747264495,0.06326778,3115.7,3115.3,0.16040926]
[1731747264717,0.06326778,3115.7,3115.2,0.7753]
[1731747264887,0.06326778,3115.7,3115.3,0.16040977]
[1731747265088,0.06326778,3115.8,3115.5,0.7753]
[1731747266196,0.06326778,3115.9,3115.5,0.7753]
[1731747268915,0.06326778,3116.0,3115.5,0.7753]
[1731747271504,3.20934,3115.9,3115.5,0.7753]
[1731747271734,3.27278778,3115.8,3115.5,0.7753]
[1731747272038,3.20958,3115.7,3115.2,35.7753]
[1731747272244,3.20958,3115.7,3115.3,0.16040733]
[1731747272413,3.20958,3115.7,3115.2,35.7753]
[1731747272736,0.06326778,3115.8,3115.3,0.16040767]
[1731747272931,0.06326778,3115.8,3115.4,0.1604053]
[1731747273237,0.06326778,3115.8,3115.3,3.20988]
[1731747273441,0.06326778,3115.8,3115.4,0.7604]
[1731747276110,0.06326778,3115.8,3115.5,0.16039772]
[1731747276335,0.06326778,3115.8,3115.4,0.7604]
[1731747276509,0.06326778,3115.8,3115.5,0.16039715]
[1731747276714,0.06326778,3115.8,3115.4,0.7604]
[1731747276910,0.06326778,3115.8,3115.5,0.16039731]
[1731747277128,0.06326778,3115.8,3115.4,0.7604]
[1731747277330,0.06326778,3115.8,3115.5,0.16039765]
[1731747277529,0.06326778,3115.8,3115.4,0.7604]
[1731747278043,0.06326778,3115.8,3115.5,0.16039963]
[1731747278232,0.06326778,3115.8,3115.4,0.7604]
[1731747278438,0.06326778,3115.8,3115.5,0.16039305]
[1731747278633,0.06326778,3115.8,3115.4,0.7604]
[1731747278832,0.06326778,3115.8,3115.5,0.16039833]
[1731747279008,0.06326778,3115.8,3115.4,0.7604]
[1731747279608,0.06326778,3115.8,3115.5,0.16039691]
[1731747279840,0.06326778,3115.8,3115.4,0.7604]
[1731747281209,0.06326778,3115.8,3115.5,0.16039643]
[1731747281439,0.06326778,3115.8,3115.4,0.7604]
[1731747281735,0.06326778,3115.8,3115.5,0.16039758]
[1731747281933,3.27271778,3115.8,3115.4,0.7604]
[1731747282134,3.27271778,3115.8,3115.5,0.16039797]
[1731747282335,3.27271778,3115.8,3115.4,0.7604]
[1731747282520,3.27271778,3115.8,3115.5,0.16039761]
[1731747282721,3.20945,3115.8,3115.4,0.7604]
[1731747282941,3.20945,3115.8,3115.5,0.16039642]
[1731747283145,3.20945,3115.8,3115.4,0.7604]
[1731747283509,3.20945,3115.8,3115.5,0.16039642]
[1731747283863,3.20945,3115.8,3115.4,0.7604]
[1731747284012,3.20945,3115.8,3115.5,0.16039616]
[1731747284362,3.20945,3115.8,3115.4,0.7604]
[1731747284655,3.20945,3115.8,3115.5,0.16039636]
[1731747284863,3.20945,3115.8,3115.4,0.7604]
[1731747285060,0.06326778,3116.0,3115.5,0.16039595]
[1731747285216,3.27250778,3116.0,3115.6,0.16039595]
[1731747285416,3.20924,3116.0,3115.5,3.20975]
[1731747285646,4.09317778,3116.2,3115.6,0.16039082]
[1731747285817,0.8101,3116.4,3115.8,2.1617056]
[1731747286033,4.01873,3116.6,3116.0,3.20922]
[1731747286232,4.01873,3116.6,3116.1,3.36949392]
[1731747286433,3.20863,3116.6,3116.2,0.98837392]
[1731747286633,3.20863,3116.6,3116.2,0.828]
[1731747287035,0.06326778,3116.7,3116.2,4.037]
[1731747287234,0.06326778,3116.7,3116.3,0.16036249]
[1731747287447,0.06326778,3116.7,3116.2,4.037]
[1731747287646,0.06326778,3116.7,3116.3,0.16035583]
[1731747287860,12.12844,3116.8,3116.2,4.037]
[1731747288027,12.12844,3116.8,3116.3,0.16035237]
[1731747288228,12.12844,3116.8,3116.2,4.037]
[1731747288579,12.12844,3116.8,3116.3,0.16035272]
[1731747288863,12.12844,3116.8,3116.2,4.037]
[1731747289020,12.12844,3116.8,3116.3,0.16035201]
[1731747289221,12.12844,3116.8,3116.2,4.037]
[1731747289443,12.12844,3116.8,3116.3,0.16035401]
[1731747289650,12.12844,3116.8,3116.2,4.037]
[1731747289861,12.12844,3116.8,3116.3,0.16035427]
[1731747290049,12.12844,3116.8,3116.2,5.3707056]
[1731747290264,12.12844,3116.8,3116.3,0.16035278]
[1731747290466,12.12844,3116.8,3116.2,5.3707056]
[1731747290647,12.12844,3116.8,3116.3,0.1603508]
[1731747290850,12.12844,3116.8,3116.2,5.3707056]
[1731747291043,8.92,3116.8,3116.3,0.16035153]
[1731747291252,8.92,3116.9,3116.4,1.73294208]
[1731747291472,8.92,3116.9,3116.6,0.828]
[1731747291773,8.92,3116.9,3116.7,0.23888789]
[1731747292098,4.01817,3117.2,3116.8,0.23888789]
[1731747292236,0.06326778,3117.1,3116.9,0.23888789]
[1731747292456,8.92,3117.0,3116.6,5.3702956]
[1731747292681,8.92,3117.0,3116.7,3.44714979]
[1731747292882,8.92,3117.0,3116.8,0.23863979]
[1731747293051,8.92,3116.9,3116.8,1.8837056]
[1731747293400,8.92,3116.9,3116.8,2.12233399]
[1731747293894,8.92,3116.9,3116.8,0.55]
[1731747294089,8.92,3116.9,3116.8,0.78850248]
[1731747294403,8.92,3116.9,3116.8,3.99691248]
[1731747296800,8.92,3116.9,3116.8,6.11641808]
[1731747297203,8.92,3117.4,3116.8,2.90800808]
[1731747297401,8.92,3117.4,3117.0,3.7582]
[1731747297587,8.92,3117.4,3117.2,0.7858]
[1731747297787,8.92,3117.6,3117.3,0.23812473]
[1731747297958,8.92,3117.8,3117.4,0.23812473]
[1731747298157,8.92,3117.8,3117.2,3.99379]
[1731747298158,12.12739,3117.8,3117.2,3.99379]
[1731747298458,12.12739,3117.8,3117.3,0.23796445]
[1731747298653,12.12739,3117.8,3117.2,3.99379]
[1731747298883,12.12739,3117.8,3117.3,0.23796175]
[1731747299089,12.12739,3117.8,3117.2,3.99379]
[1731747299301,12.12739,3117.8,3117.3,0.23787162]
[1731747299504,8.92,3117.8,3117.4,3.20778]
[1731747299702,8.92,3117.8,3117.2,5.3274956]
[1731747299902,8.92,3117.8,3117.3,3.4457681]
[1731747300123,8.92,3117.8,3117.3,3.2079]
[1731747300674,8.92,3117.8,3117.4,0.23784214]
[1731747300910,8.92,3117.8,3117.4,3.20777]
[1731747301275,8.92,3117.8,3117.4,38.20777]
[1731747301481,0.7695,3118.0,3117.4,38.20777]
[1731747301676,0.83276778,3118.0,3117.4,38.20777]
[1731747302032,0.83276778,3118.0,3117.5,2.1195056]
[1731747302033,0.06326778,3118.0,3117.5,2.1195056]
[1731747302227,0.06326778,3118.0,3117.5,0.7858]
[1731747302826,0.06326778,3118.0,3117.6,35.23775709]
[1731747304028,0.7695,3118.5,3117.9,3.20719]
[1731747304178,0.7695,3118.5,3118.0,3.20715]
[1731747304385,3.20683,3118.4,3117.9,0.55]
[1731747304579,3.97624,3118.5,3117.9,3.75727]
[1731747304897,0.06326778,3118.4,3117.9,0.55]
[1731747305118,0.06326778,3118.6,3118.0,3.20716]
[1731747305422,3.97599,3118.7,3118.0,3.27129709]
[1731747305423,4.03925778,3118.7,3118.0,3.27129709]
[1731747305581,4.03925778,3118.7,3118.0,38.27129709]
[1731747305784,4.03925778,3118.7,3118.0,35.0]
[1731747306127,3.97599,3118.7,3118.1,3.20707]
[1731747306323,3.97578,3118.9,3118.2,0.84993486]
[1731747306625,3.97578,3118.9,3118.3,3.75679]
[1731747306928,0.7695,3118.9,3118.4,3.20675]
[1731747307511,3.97576,3118.9,3118.3,0.55]
[1731747307713,3.97576,3118.9,3118.3,3.75686]
[1731747308030,0.7695,3118.9,3118.4,3.20676]
[1731747308236,0.83276778,3118.9,3118.4,3.20676]
[1731747308522,0.7695,3118.9,3118.4,3.20676]
[1731747308727,0.83276778,3118.9,3118.4,3.20676]
[1731747308897,3.20666,3118.5,3118.4,0.06412901]
[1731747309108,3.20666,3118.5,3118.0,35.0]
[1731747309109,3.20708,3118.1,3118.0,35.0]
[1731747309500,3.27019778,3118.3,3118.0,35.0]
[1731747310193,3.20701,3118.2,3118.0,35.0]
[1731747310392,0.06326778,3118.3,3118.0,35.0]
[1731747310622,3.97629,3118.4,3118.0,35.0]
[1731747310834,0.06326778,3118.9,3118.3,3.20686]
[1731747310991,3.20626,3118.9,3118.3,3.20686]
[1731747311187,3.20638,3118.8,3118.1,4.54285]
[1731747312046,0.06326778,3118.7,3118.1,4.54285]
[1731747312182,3.20638,3118.8,3118.1,4.54285]
[1731747312528,3.20638,3118.8,3118.2,3.20695]
[1731747312731,0.06326778,3118.9,3118.2,3.20695]
[1731747312896,3.97566,3119.0,3118.3,3.27098883]
[1731747313289,0.06326778,3118.9,3118.3,3.27098883]
[1731747313716,3.20625,3118.9,3118.3,3.20686]
[1731747314631,3.26962778,3118.8,3118.1,0.7858]
[1731747314836,3.26962778,3118.8,3118.2,35.1602538]
[1731747314837,3.2066,3118.6,3118.2,35.1602538]
[1731747315034,3.2066,3118.6,3118.2,35.0]
[1731747315533,3.20675,3118.5,3118.2,35.0]
[1731747315689,4.04291778,3118.5,3118.2,35.0]
[1731747316306,3.20677,3118.4,3117.9,0.7826]
[1731747316510,0.83616778,3118.5,3118.0,0.16026797]
[1731747316511,3.27014778,3118.3,3118.0,0.16026797]
[1731747316711,3.27014778,3118.3,3117.7,3.99006]
[1731747316712,3.27014778,3118.3,3118.1,35.0]
[1731747317588,3.20697,3118.2,3118.1,35.0]
[1731747317795,1.42060078,3118.2,3117.3,0.7826]
[1731747317991,3.20721,3118.0,3117.4,4.04351784]
[1731747318223,3.20721,3118.0,3117.5,0.3606552]
[1731747318486,3.20721,3118.0,3117.6,0.1602912]
[1731747318720,3.97987,3118.2,3117.7,0.1602912]
[1731747318998,0.06326778,3118.1,3117.8,0.1602912]
[1731747319187,0.06326778,3118.1,3117.6,0.2003607]
[1731747319188,3.20709,3118.1,3117.6,0.2003607]
[1731747319526,0.7729,3118.2,3117.7,0.16028718]
[1731747319527,4.04314778,3118.2,3117.7,0.16028718]
[1731747319733,3.2073,3117.9,3117.8,0.16028718]
[1731747320029,3.2073,3117.9,3117.4,35.0]
[1731747320330,3.2073,3117.9,3117.5,0.1602973]
[1731747320331,0.7729,3117.7,3117.5,0.1602973]
[1731747320497,0.7729,3117.7,3117.4,35.0]
[1731747320498,0.7729,3117.7,3117.6,0.1602973]
[1731747322733,0.7729,3117.7,3117.2,35.0]
[1731747322734,0.83616778,3117.7,3117.2,35.0]
[1731747322920,3.20763,3117.6,3117.3,0.36069885]
[1731747323123,3.20763,3117.6,3117.2,35.0]
[1731747323124,3.20763,3117.6,3117.4,0.1603106]
[1731747323427,3.20763,3117.6,3117.5,0.1603106]
[1731747324970,3.20783,3117.4,3117.2,35.0]
[1731747325181,3.27116778,3117.3,3117.2,35.0]
[1731747325385,4.04406778,3117.3,3117.2,35.0]
[1731747325598,0.83616778,3117.3,3117.2,35.0]
[1731747325874,0.7729,3117.5,3117.2,35.16032011]
[1731747326076,0.7729,3117.5,3117.3,0.16032144]
[1731747326077,0.06326778,3117.5,3117.3,0.16032144]
[1731747326382,3.20782,3117.4,3117.2,35.0]
[1731747326527,3.20782,3117.4,3117.3,0.16032102]
[1731747327650,3.27108778,3117.4,3117.2,35.0]
[1731747328048,3.20782,3117.4,3117.2,35.0]
[1731747329540,3.20782,3117.4,3116.8,3.20838]
[1731747329780,3.20782,3117.4,3116.9,0.36072428]
[1731747330115,3.20782,3117.4,3117.0,35.0]
[1731747330628,3.20782,3117.4,3117.1,0.16032264]
[1731747330828,3.20782,3117.4,3117.0,35.0]
[1731747331025,3.20782,3117.4,3117.1,0.16032294]
[1731747331228,3.20782,3117.4,3117.0,35.0]
[1731747331396,3.20782,3117.4,3117.1,0.16032182]
[1731747331599,0.06326778,3117.5,3117.0,35.0]
[1731747331802,3.2077,3117.5,3117.1,0.16032108]
[1731747331986,0.7729,3117.7,3117.1,3.27225067]
[1731747332187,3.2074,3117.8,3117.2,4.19633599]
[1731747332496,3.2074,3117.8,3117.3,0.16031383]
[1731747332703,0.06326778,3117.7,3117.3,0.04468776]
[1731747332904,0.06326778,3117.7,3117.2,3.99052]
[1731747333085,0.06326778,3117.7,3117.4,0.04466643]
[1731747333289,0.06326778,3117.7,3117.3,0.04468776]
[1731747333631,0.06326778,3117.7,3117.2,3.99052]
[1731747333860,3.2074,3117.8,3117.3,0.04468776]
[1731747334067,0.06326778,3117.7,3117.2,3.99052]
[1731747334278,0.06326778,3117.7,3117.3,0.16030593]
[1731747334424,0.06326778,3117.7,3117.3,0.04468776]
[1731747334624,0.06326778,3118.1,3117.6,0.8024]
[1731747335018,0.06326778,3118.1,3117.7,0.04460245]
[1731747336508,0.06326778,3118.1,3117.7,3.25208245]
[1731747338123,0.06326778,3118.1,3117.7,0.04460245]
[1731747338322,0.7517,3118.2,3117.7,0.04460245]
[1731747338323,3.95868,3118.2,3117.7,0.04460245]
[1731747339807,0.06326778,3118.1,3117.7,0.04460245]
[1731747340206,3.95868,3118.2,3117.7,0.04460245]
[1731747341612,0.7517,3118.2,3117.7,3.25208245]
[1731747341828,3.02180778,3118.4,3117.7,3.25208245]
[1731747342221,3.2067,3118.5,3117.8,3.20738]
[1731747342555,3.2067,3118.5,3117.9,0.04443688]
[1731747342753,3.2068,3118.4,3117.9,0.04443688]
[1731747342917,3.2068,3118.4,3117.7,3.20748]
[1731747343115,3.20648,3118.7,3118.0,4.05396556]
[1731747343327,3.20648,3118.7,3118.0,4.00955]
[1731747343528,3.20648,3118.7,3118.1,3.25146425]
[1731747343732,12.12629,3118.9,3118.1,3.25143425]
[1731747343940,3.20644,3118.8,3118.1,3.25143425]
[1731747345101,0.7517,3118.7,3118.1,3.25143425]
[1731747345225,3.20647,3118.7,3118.1,0.04439425]
[1731747345423,3.20647,3118.7,3118.1,3.25144425]
[1731747346124,0.7517,3118.4,3118.1,0.04439425]
[1731747346322,3.95819,3118.7,3118.0,3.20717]
[1731747346619,3.20649,3118.7,3118.1,0.04424676]
[1731747346824,3.602309,3118.7,3118.2,0.8024]
[1731747347071,0.7517,3118.5,3118.3,0.04420413]
[1731747347368,0.7517,3118.5,3118.0,0.8024]
[1731747347528,0.7517,3118.5,3118.4,0.0441972]
[1731747347719,0.7517,3118.5,3118.0,0.8024]
[1731747347932,3.9584,3118.5,3118.4,0.0441972]
[1731747348163,3.9584,3118.5,3117.9,3.20725]
[1731747348357,3.9584,3118.5,3118.4,0.04420439]
[1731747348667,3.9584,3118.5,3117.9,3.20725]
[1731747348868,3.9584,3118.5,3118.4,0.04420439]
[1731747349069,3.9584,3118.5,3117.9,3.27138905]
[1731747349378,3.9584,3118.5,3118.4,0.04419121]
[1731747349831,3.9584,3118.5,3117.9,3.27138906]
[1731747350270,3.9584,3118.5,3118.0,0.04427647]
[1731747350572,3.9584,3118.5,3117.9,3.27138917]
[1731747350775,3.9584,3118.5,3118.1,0.04425155]
[1731747350927,3.9584,3118.5,3118.0,0.04427287]
[1731747351129,3.9584,3118.5,3117.9,3.27138917]
[1731747351328,3.9584,3118.5,3118.1,0.04425155]
[1731747351573,3.9584,3118.5,3118.0,35.0]
[1731747351870,3.9584,3118.5,3118.1,0.0427759]
[1731747360462,3.20679,3118.4,3118.1,0.0427759]
[1731747360669,3.9584,3118.5,3118.1,0.0427759]
[1731747366968,3.20679,3118.4,3118.1,0.0427759]
[1731747367392,3.20697,3118.2,3118.1,0.0427759]
[1731747369200,4.02607,3118.2,3118.1,0.0427759]
[1731747372210,3.20751,3117.7,3117.1,0.8221]
[1731747372373,3.20751,3117.7,3117.2,0.16030743]
[1731747372577,3.20751,3117.7,3117.3,35.39930222]
[1731747372801,3.2073,3117.9,3117.4,0.23899479]
[1731747373069,3.20739,3117.8,3117.5,0.27527643]
[1731747373300,3.20739,3117.8,3117.6,0.23899479]
[1731747373500,3.20739,3117.8,3117.7,0.23899479]
[1731747373814,3.20739,3117.8,3117.7,0.03623899]
[1731747374006,4.02621,3118.1,3117.7,0.27516372]
[1731747374304,4.02621,3118.1,3117.8,0.27513219]
[1731747374510,3.20726,3118.0,3117.8,0.03621766]
[1731747374716,4.02621,3118.1,3117.5,0.8178]
[1731747374914,4.02621,3118.1,3117.9,0.03619633]
[1731747375068,4.749521,3118.1,3117.5,0.8178]
[1731747375268,3.20729,3117.9,3117.6,0.03626031]
[1731747375484,4.02621,3118.1,3117.6,0.03626031]
[1731747375999,3.20725,3118.0,3117.6,0.03626031]
[1731747376317,0.8191,3118.1,3117.4,0.16030452]
[1731747376474,3.20728,3117.9,3117.7,0.03623234]
[1731747376670,3.20728,3117.9,3117.4,0.16030761]
[1731747376870,3.20728,3117.9,3117.5,0.03506699]
[1731747377203,3.2072,3118.0,3117.4,3.20778]
[1731747377371,3.2072,3118.0,3117.6,0.03504566]
[1731747377712,4.02619,3118.1,3117.7,0.03502433]
[1731747377918,3.20719,3118.0,3117.7,0.03502433]
[1731747379687,3.20729,3117.9,3117.7,0.03502433]
[1731747380213,4.02619,3118.1,3117.7,0.03502433]
[1731747380510,3.20677,3118.4,3117.9,0.8023]
[1731747381012,3.20677,3118.4,3118.0,0.03502453]
[1731747381308,3.20677,3118.4,3117.9,0.8023]
[1731747381499,3.20677,3118.4,3118.1,0.03505956]
[1731747381702,3.20677,3118.4,3117.9,0.8023]
[1731747381908,3.20677,3118.4,3118.2,0.03502145]
[1731747382076,3.20677,3118.4,3117.9,0.8023]
[1731747382416,3.20677,3118.4,3118.0,0.0350641]
[1731747382777,3.20677,3118.4,3117.9,0.8023]
[1731747382969,3.20677,3118.4,3118.1,0.03503384]
[1731747383173,3.20677,3118.4,3117.9,0.8023]
[1731747383373,3.20677,3118.4,3118.2,0.03501251]
[1731747383601,3.20677,3118.4,3117.9,0.8023]
[1731747383820,3.20677,3118.4,3118.3,0.03499119]
[1731747384330,3.20677,3118.4,3117.9,0.8023]
[1731747384475,3.20677,3118.4,3118.3,0.03499119]
[1731747384822,3.20677,3118.4,3117.9,0.8023]
[1731747385021,3.20677,3118.4,3118.3,0.03498455]
[1731747385314,3.20677,3118.4,3118.3,0.03499119]
[1731747385526,3.20677,3118.4,3117.9,0.8023]
[1731747385692,3.20677,3118.4,3118.3,0.03492207]
[1731747386013,3.20677,3118.4,3117.9,0.8023]
[1731747386532,3.20688,3118.3,3118.0,0.03498603]
[1731747386736,3.20688,3118.3,3117.9,0.8023]
[1731747386904,3.20688,3118.3,3118.1,0.03496471]
[1731747387092,3.20688,3118.3,3117.9,0.8023]
[1731747387403,3.20688,3118.3,3118.0,0.03498603]
[1731747387813,3.20688,3118.3,3117.9,0.8023]
[1731747388127,3.20688,3118.3,3118.0,0.03498603]
[1731747388333,3.20688,3118.3,3117.9,0.8023]
[1731747388490,3.20688,3118.3,3118.1,0.03496471]
[1731747388686,3.20688,3118.3,3117.9,0.8023]
[1731747388891,3.20688,3118.3,3118.0,0.03498603]
[1731747389129,3.20688,3118.3,3117.9,0.8023]
[1731747390896,3.20688,3118.3,3118.2,0.03496586]
[1731747391230,3.20688,3118.3,3117.9,0.8023]
[1731747391739,3.20688,3118.3,3118.0,0.03384051]
[1731747391938,3.20688,3118.3,3117.9,0.8023]
[1731747392235,3.20688,3118.3,3118.1,0.03381918]
[1731747392448,3.20688,3118.3,3118.0,0.03384051]
[1731747392645,3.20706,3118.2,3117.9,0.8023]
[1731747393618,4.0281,3118.5,3117.9,0.8023]
[1731747393819,3.20679,3118.4,3117.9,0.8023]
[1731747395351,3.20669,3118.5,3117.9,4.00957]
[1731747396640,3.20669,3118.5,3117.9,4.07370923]
[1731747397140,3.20669,3118.5,3118.0,0.16027577]
[1731747397452,3.20669,3118.5,3117.9,4.00957]
[1731747397625,3.20669,3118.5,3118.1,0.03264323]
[1731747397828,3.20669,3118.5,3118.0,0.16027605]
[1731747397829,3.20669,3118.5,3118.0,0.03266456]
[1731747398034,3.20669,3118.5,3118.2,0.03262191]
[1731747398232,3.20669,3118.5,3118.1,0.03264323]
[1731747398554,3.20669,3118.5,3118.2,0.03262191]
[1731747398704,3.20669,3118.5,3118.0,0.16027583]
[1731747398900,3.20669,3118.5,3118.1,0.03264323]
[1731747399103,0.7837,3118.7,3118.1,3.20705]
[1731747399341,3.20636,3118.8,3118.2,4.03819191]
[1731747400856,3.20636,3118.8,3118.2,0.83122191]
[1731747401550,3.20636,3118.8,3118.2,4.03818191]
[1731747404334,3.20636,3118.8,3118.3,0.7986]
[1731747404500,3.20636,3118.8,3118.3,0.82989307]
[1731747408226,3.20646,3118.7,3118.3,0.82989307]
[1731747411477,3.20663,3118.6,3118.3,0.82989307]
[1731747411765,3.20667,3118.5,3118.3,0.03129307]
[1731747411953,3.20677,3118.4,3118.2,35.0]
[1731747412159,3.20677,3118.4,3118.0,0.7986]
[1731747412465,3.20677,3118.4,3118.3,0.03018171]
[1731747412623,3.93340532,3118.4,3117.9,3.0]
[1731747412866,3.20677,3118.4,3117.9,3.0]
[1731747413309,3.20677,3118.4,3118.0,0.03024566]
[1731747413710,3.20689,3118.3,3117.8,35.7986]
[1731747414212,3.20689,3118.3,3117.9,0.03026698]
[1731747414382,0.823,3118.2,3117.9,0.03026698]
[1731747415486,4.02989,3118.3,3117.9,0.03026698]
[1731747417335,3.20697,3118.2,3117.9,0.03026698]
[1731747418008,0.823,3118.3,3117.9,0.03026698]
[1731747418009,3.20709,3118.1,3117.9,0.03026698]
[1731747418382,4.03018,3118.0,3117.9,0.03026698]
[1731747419209,5.36252157,3118.0,3117.9,0.03026698]
[1731747419729,3.20773,3117.5,3117.1,0.7627]
[1731747419927,3.20773,3117.5,3117.2,35.0]
[1731747420095,3.20773,3117.5,3117.2,35.02951781]
[1731747420096,3.2079,3117.3,3117.2,35.02951781]
[1731747420334,4.0309,3117.3,3117.2,0.02951781]
[1731747420530,3.2083,3117.0,3116.6,0.7627]
[1731747420864,3.20842,3116.8,3116.7,0.02962447]
[1731747421160,3.20842,3116.8,3116.3,0.7627]
[1731747421952,3.20861,3116.7,3116.3,0.7627]
[1731747422321,3.20861,3116.7,3116.2,35.0]
[1731747422322,3.20873,3116.5,3116.2,35.0]
[1731747422638,3.20885,3116.4,3116.2,35.0]
[1731747423960,0.823,3116.8,3116.2,35.0]
[1731747423961,2.15534157,3116.8,3116.2,35.0]
[1731747424262,3.20893,3116.3,3116.2,35.0]
[1731747424833,3.20883,3116.4,3116.2,35.0]
[1731747425441,3.20862,3116.6,3116.2,35.0]
[1731747425854,3.20862,3116.6,3116.0,4.54157157]
[1731747426181,3.20862,3116.6,3116.1,0.03500543]
[1731747426321,3.20862,3116.6,3116.1,35.03500543]
[1731747427530,3.20843,3116.8,3116.2,0.7627]
[1731747427822,3.20843,3116.8,3116.3,0.03519349]
[1731747428064,4.03102,3117.2,3116.4,0.7627]
[1731747428235,4.03102,3117.2,3116.4,39.07077529]
[1731747428446,4.03102,3117.2,3116.4,39.00660682]
[1731747428637,3.20802,3117.2,3116.5,3.20871]
[1731747428857,3.20763,3117.6,3116.9,3.2083]
[1731747429071,3.20749,3117.7,3117.0,1.33234157]
[1731747429271,3.20749,3117.7,3117.0,36.36734837]
[1731747429466,0.823,3118.0,3117.0,36.33234157]
[1731747429639,1.33234157,3118.4,3117.0,36.33234157]
[1731747429640,3.20729,3117.9,3117.2,0.7627]
[1731747429827,3.20729,3117.9,3117.3,3.2079]
[1731747430023,3.20699,3118.2,3117.3,3.2079]
[1731747430229,3.20709,3118.1,3117.5,3.20769]
[1731747432082,3.20709,3118.1,3117.3,3.2079]
[1731747432379,3.20721,3118.0,3117.3,3.2079]
[1731747433254,0.62575379,3118.6,3118.5,0.7906]
[1731747433441,0.01,3120.0,3118.5,0.7906]
[1731747433442,3.20597,3119.2,3118.5,0.7906]